bitfinex/quotes_ETHUSD_20240701
["timestamp","ask_amount","ask_price","bid_price","bid_amount"]
[1719821475766,2.86082,3495.5,3494.8,3.66434]
[1719821476337,2.86092,3495.4,3494.9,2.2538]
[1719821479647,0.142,3495.5,3494.9,2.2538]
[1719821480852,2.86092,3495.4,3494.9,2.2538]
[1719821483114,0.142,3495.5,3494.9,5.11506]
[1719821484166,0.142,3495.5,3495.1,2.86112]
[1719821484449,0.142,3495.5,3495.2,2.2773]
[1719821491771,0.142,3495.5,3495.0,5.30722]
[1719821494770,0.142,3495.5,3495.1,0.05721672]
[1719821495481,2.5127,3495.5,3495.0,2.86122]
[1719821495838,0.142,3495.5,3495.0,2.86122]
[1719821498542,2.86095,3495.4,3494.7,2.73791992]
[1719821499469,2.86095,3495.4,3494.7,5.59936992]
[1719821503734,0.142,3495.5,3494.8,3.66438]
[1719821503966,0.142,3495.5,3494.9,2.8613]
[1719821508262,3.00283,3495.5,3494.9,2.8613]
[1719821511076,2.861,3495.3,3494.7,2.4499]
[1719821511625,2.3764,3495.4,3494.7,5.31131]
[1719821511765,2.3764,3495.4,3494.8,3.66434]
[1719821512861,0.142,3495.5,3495.0,3.2137]
[1719821513060,0.142,3495.5,3495.4,2.8609]
[1719821517088,0.142,3495.5,3495.2,3.66399]
[1719821517287,0.142,3495.5,3495.0,5.27191]
[1719821517600,0.142,3495.5,3495.1,2.86112]
[1719821519004,0.142,3495.5,3495.0,6.07491]
[1719821519325,3.2031,3495.4,3494.5,9.6669]
[1719821519470,2.86102,3495.3,3494.6,3.14420176]
[1719821519667,2.86102,3495.3,3494.6,2.8615]
[1719821521535,2.86102,3495.3,3494.6,3.6645]
[1719821522824,2.86107,3495.2,3494.6,3.6645]
[1719821523508,2.86107,3495.2,3494.6,0.803]
[1719821523805,2.86107,3495.2,3494.8,0.803]
[1719821523979,5.261,3495.4,3494.8,0.803]
[1719821524183,2.861,3495.3,3494.8,0.803]
[1719821524580,2.85954887,3495.3,3494.8,0.803]
[1719821525807,2.86106,3495.2,3494.8,0.803]
[1719821529839,5.261,3495.4,3494.8,0.803]
[1719821529998,2.86115,3495.1,3494.8,0.803]
[1719821530205,5.261,3495.4,3494.8,0.803]
[1719821530501,5.261,3495.4,3494.5,9.95708687]
[1719821530502,2.8609,3495.4,3495.3,0.803]
[1719821531518,2.86067,3495.7,3495.3,0.803]
[1719821531820,2.86074,3495.6,3495.3,0.803]
[1719821532886,2.86067,3495.7,3495.3,0.803]
[1719821535294,2.86052,3495.9,3495.3,3.66398]
[1719821535805,2.86052,3495.9,3495.3,0.803]
[1719821537196,2.86052,3495.9,3495.3,3.66397]
[1719821545296,5.30431,3496.0,3495.4,2.86089]
[1719821546219,5.30431,3496.0,3495.2,3.664]
[1719821546726,5.30431,3496.0,3495.2,2.861]
[1719821547896,2.86065,3495.7,3495.2,2.861]
[1719821550369,2.86065,3495.7,3495.2,3.664]
[1719821550648,2.86055,3495.9,3495.2,3.664]
[1719821550941,2.86055,3495.9,3495.4,3.0925]
[1719821552464,2.86038,3496.1,3495.4,5.95339]
[1719821552834,5.86028,3496.2,3495.4,5.95339]
[1719821553177,2.86023,3496.3,3495.9,0.803]
[1719821553570,2.86023,3496.3,3495.8,2.4197]
[1719821553758,5.33645,3496.5,3495.9,0.803]
[1719821553965,3.0,3496.4,3495.9,0.803]
[1719821554286,5.8601,3496.4,3495.9,0.803]
[1719821554891,2.85995,3496.6,3496.1,0.803]
[1719821555632,2.85961,3497.0,3496.3,0.803]
[1719821555871,5.26615,3497.2,3496.7,0.803]
[1719821556070,2.85945,3497.2,3496.7,0.803]
[1719821556257,2.85928,3497.4,3496.7,3.66283]
[1719821556570,2.85935,3497.3,3496.7,3.66283]
[1719821556777,2.85935,3497.3,3496.7,2.85983]
[1719821556936,2.85935,3497.3,3496.8,0.803]
[1719821557277,2.85935,3497.3,3496.7,2.85983]
[1719821557842,2.85935,3497.3,3496.6,0.803]
[1719821559766,2.85943,3497.2,3496.6,0.803]
[1719821561911,2.85951,3497.1,3496.6,0.803]
[1719821562190,2.85959,3497.0,3496.6,0.803]
[1719821562686,2.85959,3497.0,3496.4,8.123]
[1719821564196,2.85969,3496.9,3496.4,7.32]
[1719821564577,2.85976,3496.8,3496.4,7.32]
[1719821564911,2.85991,3496.7,3496.4,7.32]
[1719821565118,2.85992,3496.6,3496.0,3.1793]
[1719821565777,2.86001,3496.5,3496.0,3.1793]
[1719821571121,2.86001,3496.5,3495.8,10.18057]
[1719821571412,2.86016,3496.3,3495.8,7.32]
[1719821572502,2.86016,3496.3,3495.8,8.123]
[1719821572895,2.86016,3496.3,3495.8,7.32]
[1719821574327,2.86006,3496.5,3496.2,0.803]
[1719821574525,2.86006,3496.5,3496.0,0.803]
[1719821575433,2.86008,3496.4,3496.0,0.803]
[1719821576228,2.86,3496.5,3496.0,3.1907]
[1719821576911,2.85973,3496.9,3496.3,0.803]
[1719821581256,2.85975,3496.8,3496.3,0.803]
[1719821581626,2.85975,3496.8,3496.2,2.86019]
[1719821582253,2.85985,3496.7,3496.0,2.3877]
[1719821582549,2.86001,3496.5,3496.0,3.1907]
[1719821589445,5.71974,3496.7,3496.0,3.1907]
[1719821590178,2.85985,3496.7,3496.0,3.1907]
[1719821590496,2.85993,3496.6,3496.0,3.1907]
[1719821592586,2.85993,3496.6,3496.0,6.0511]
[1719821596080,2.85982,3496.8,3496.0,6.0511]
[1719821596404,2.8597,3496.9,3496.0,6.0511]
[1719821596405,2.85983,3496.7,3496.0,6.0511]
[1719821596607,2.85983,3496.7,3496.2,0.803]
[1719821601490,2.85954,3497.1,3496.3,2.8601]
[1719821601697,2.85968,3496.9,3496.3,2.8601]
[1719821601905,2.85986,3496.7,3496.1,2.86028]
[1719821602119,2.85986,3496.7,3496.1,3.66328]
[1719821603430,2.85996,3496.6,3496.0,3.1907]
[1719821603810,2.86,3496.5,3496.0,3.1907]
[1719821604007,2.86023,3496.3,3495.8,9.59]
[1719821604202,2.86023,3496.3,3495.8,10.393]
[1719821605431,2.86023,3496.3,3495.8,3.073]
[1719821607032,2.2743,3496.6,3495.8,5.93356]
[1719821607033,2.8601,3496.4,3495.8,5.93356]
[1719821607626,2.8601,3496.4,3496.0,0.803]
[1719821612802,2.86011,3496.4,3495.6,2.73750499]
[1719821613038,3.2044,3496.2,3495.4,9.7669]
[1719821613362,2.86048,3496.0,3495.4,9.7669]
[1719821614954,5.26171,3496.2,3495.5,3.66376]
[1719821615154,2.86033,3496.1,3495.5,3.66376]
[1719821617626,2.86033,3496.1,3495.5,0.803]
[1719821617627,2.86042,3496.0,3495.5,0.803]
[1719821618647,2.8602,3496.3,3495.4,12.91643549]
[1719821618648,2.86049,3495.9,3495.4,9.7669]
[1719821620565,5.14309,3495.9,3495.4,7.32]
[1719821620936,2.8607,3495.7,3495.4,7.32]
[1719821621154,2.8607,3495.7,3495.2,1.09787596]
[1719821621339,2.8607,3495.7,3495.2,0.803]
[1719821621540,2.8607,3495.7,3495.1,2.4802]
[1719821621847,2.8607,3495.7,3494.9,9.7644]
[1719821622857,2.8609,3495.4,3494.9,9.7644]
[1719821624747,2.8609,3495.4,3494.9,10.05743407]
[1719821625569,2.8609,3495.4,3494.9,9.7644]
[1719821626132,2.8609,3495.4,3494.9,2.4444]
[1719821628895,2.86099,3495.3,3494.7,2.86147]
[1719821629035,2.86099,3495.3,3494.8,1.08715148]
[1719821629355,2.86099,3495.3,3494.8,0.803]
[1719821633654,2.86099,3495.3,3495.0,0.803]
[1719821638966,2.386,3495.5,3495.0,0.803]
[1719821639645,2.86092,3495.4,3495.0,0.803]
[1719821640369,2.8608,3495.6,3495.0,0.803]
[1719821640573,2.86082,3495.5,3495.0,0.803]
[1719821640762,2.8609,3495.4,3495.0,0.803]
[1719821642566,2.86066,3495.7,3495.2,3.66405]
[1719821642878,2.86066,3495.7,3495.2,0.803]
[1719821644777,2.86066,3495.7,3495.1,2.4782]
[1719821644979,2.86074,3495.6,3495.1,2.4782]
[1719821645166,2.86083,3495.5,3494.9,2.8613]
[1719821645571,2.86083,3495.5,3494.9,3.6643]
[1719821647981,2.86083,3495.5,3494.9,0.803]
[1719821648199,2.86101,3495.3,3494.7,0.2853316]
[1719821648552,2.86101,3495.3,3494.6,6.1296]
[1719821649712,2.86101,3495.3,3494.6,6.42308998]
[1719821651897,2.86101,3495.3,3494.7,0.803]
[1719821652998,2.86107,3495.2,3494.7,0.803]
[1719821659334,5.16571,3495.4,3494.7,0.803]
[1719821659639,5.16571,3495.4,3494.7,3.66447]
[1719821660108,5.16571,3495.4,3494.9,0.803]
[1719821663924,2.86091,3495.4,3494.9,0.803]
[1719821664096,2.86077,3495.6,3495.0,2.3608]
[1719821665817,2.8609,3495.4,3495.0,2.3608]
[1719821668133,2.4158,3495.9,3495.1,0.803]
[1719821668134,2.86066,3495.7,3495.1,0.803]
[1719821668429,2.86066,3495.7,3495.0,2.3608]
[1719821669117,2.86066,3495.7,3495.0,5.22196]
[1719821670745,2.86076,3495.6,3495.0,5.22196]
[1719821671154,2.86088,3495.5,3494.8,2.86136]
[1719821671334,2.86088,3495.5,3494.8,3.66436]
[1719821671726,2.86091,3495.4,3494.8,3.66436]
[1719821672726,2.86108,3495.2,3494.6,0.29348998]
[1719821673051,2.86108,3495.2,3494.6,5.86153]
[1719821673228,2.86108,3495.2,3494.7,0.803]
[1719821673638,2.86108,3495.2,3494.6,5.86153]
[1719821674137,5.11516,3495.4,3494.6,5.86153]
[1719821674332,2.86099,3495.3,3494.6,5.86153]
[1719821676313,2.86099,3495.3,3494.7,2.86146]
[1719821680026,2.86099,3495.3,3494.7,3.66446]
[1719821681357,2.86099,3495.3,3494.7,2.86146]
[1719821681669,2.86099,3495.3,3494.7,3.66446]
[1719821684335,2.86085,3495.5,3494.8,2.86139]
[1719821684536,2.86085,3495.5,3494.9,3.2059]
[1719821684945,2.8609,3495.4,3494.9,3.2059]
[1719821685146,5.32149,3495.7,3494.9,3.2059]
[1719821685386,2.86088,3495.5,3494.9,3.2059]
[1719821686459,2.86074,3495.6,3494.9,3.2059]
[1719821687786,2.86074,3495.6,3495.0,2.86121]
[1719821692396,2.86074,3495.6,3495.1,2.86114]
[1719821692728,2.8606,3495.8,3495.2,2.86105]
[1719821693276,2.86065,3495.7,3495.2,2.86105]
[1719821693585,2.86065,3495.7,3495.0,2.86117]
[1719821694005,2.86075,3495.6,3495.0,2.86117]
[1719821697493,2.86073,3495.6,3495.1,2.86112]
[1719821700611,2.86073,3495.6,3494.9,6.35117471]
[1719821701187,2.86073,3495.6,3495.0,2.86121]
[1719821702037,2.86073,3495.6,3494.9,3.48993471]
[1719821702038,5.25143,3495.5,3494.9,2.68693471]
[1719821702339,2.3906,3495.5,3494.9,3.14531471]
[1719821702490,2.3906,3495.5,3494.9,2.86128]
[1719821703924,5.25142,3495.5,3494.9,2.86128]
[1719821704217,2.86091,3495.4,3494.7,5.13641]
[1719821704424,2.86091,3495.4,3494.8,2.86132]
[1719821705790,2.86091,3495.4,3494.8,3.66432]
[1719821707539,2.86091,3495.4,3494.8,0.803]
[1719821708028,2.86091,3495.4,3494.8,3.66437]
[1719821708829,2.2966,3495.0,3494.5,7.32]
[1719821709843,2.86148,3494.7,3494.5,7.292]
[1719821710631,2.86141,3494.8,3494.5,7.292]
[1719821711829,2.86117,3495.1,3494.6,0.803]
[1719821716403,2.86098,3495.3,3494.6,0.803]
[1719821716736,2.86106,3495.2,3494.6,0.803]
[1719821716961,2.86106,3495.2,3494.6,3.66453]
[1719821717235,2.86106,3495.2,3494.7,2.86146]
[1719821717437,2.86106,3495.2,3494.6,0.803]
[1719821717740,2.86106,3495.2,3494.6,3.66455]
[1719821718417,3.00306,3495.2,3494.6,3.66455]
[1719821719130,3.00306,3495.2,3494.7,2.86146]
[1719821719545,3.00306,3495.2,3494.6,0.803]
[1719821720338,3.00306,3495.2,3494.5,5.30998]
[1719821720569,3.00306,3495.2,3494.5,6.11298]
[1719821722033,3.00306,3495.2,3494.6,2.86155]
[1719821722435,0.142,3495.2,3494.6,2.86153]
[1719821722665,0.142,3495.2,3494.7,0.803]
[1719821723639,0.142,3495.2,3494.8,2.86131]
[1719821725754,2.86118,3495.1,3494.5,2.86162]
[1719821726315,2.86124,3495.0,3494.5,2.86162]
[1719821732553,5.86425,3495.2,3494.5,3.66462]
[1719821732750,2.86116,3495.1,3494.5,3.66462]
[1719821738865,2.86116,3495.1,3494.6,2.86155]
[1719821739064,2.4939,3495.0,3494.5,2.86162]
[1719821739268,2.86116,3495.1,3494.5,2.86162]
[1719821739588,2.6359,3495.2,3494.6,2.86155]
[1719821739764,2.6359,3495.2,3494.6,3.66455]
[1719821740854,5.49697,3495.2,3494.6,3.66455]
[1719821743806,2.6359,3495.2,3494.7,2.86141]
[1719821747558,5.49698,3495.2,3494.7,2.86141]
[1719821753692,5.49698,3495.2,3494.6,2.86155]
[1719821754908,5.49698,3495.2,3494.6,3.1544277]
[1719821756504,5.49698,3495.2,3494.6,0.2928777]
[1719821756711,5.49698,3495.2,3494.5,2.86162]
[1719821757913,5.49698,3495.2,3494.6,2.86154]
[1719821764608,5.49698,3495.2,3494.6,3.66454]
[1719821764812,0.142,3495.2,3495.1,5.72228]
[1719821765015,2.3038,3496.0,3495.3,2.86093]
[1719821765312,2.3038,3496.0,3495.5,0.803]
[1719821765313,5.16421,3496.0,3495.5,0.803]
[1719821766149,2.3038,3496.0,3495.5,0.803]
[1719821766283,2.3038,3496.3,3495.9,0.803]
[1719821767016,2.86005,3496.5,3495.9,3.66348]
[1719821768740,2.86005,3496.5,3495.9,2.86048]
[1719821769388,2.86005,3496.5,3495.8,0.803]
[1719821770205,2.86005,3496.5,3495.8,3.66357]
[1719821770587,2.86005,3496.5,3495.8,2.86057]
[1719821771552,2.86008,3496.4,3495.8,2.86057]
[1719821772441,2.86017,3496.3,3495.6,6.07743]
[1719821772813,2.86017,3496.3,3495.7,2.86065]
[1719821776350,2.66017,3496.3,3495.7,2.86065]
[1719821777549,2.66017,3496.3,3495.7,2.91785695]
[1719821777749,2.86004,3496.5,3495.8,2.86056]
[1719821777912,2.86009,3496.4,3495.8,2.86056]
[1719821778757,2.86009,3496.4,3495.8,3.66356]
[1719821779048,2.86009,3496.4,3495.8,0.803]
[1719821779241,2.86019,3496.3,3495.8,0.803]
[1719821781145,2.86019,3496.3,3495.6,6.07737]
[1719821782052,2.86033,3496.1,3495.6,3.2167]
[1719821784255,2.86016,3496.3,3495.6,6.07742]
[1719821785526,2.86026,3496.2,3495.6,6.07742]
[1719821790070,2.86026,3496.2,3495.7,0.05720719]
[1719821791748,2.86,3496.5,3496.0,0.803]
[1719821791972,2.85986,3496.7,3496.2,0.803]
[1719821792175,2.9529457,3497.9,3496.6,0.803]
[1719821792176,2.8596,3497.0,3496.6,0.803]
[1719821792349,2.85952,3497.1,3496.8,0.803]
[1719821792555,2.85952,3497.1,3496.3,0.803]
[1719821793259,2.85967,3496.9,3496.3,0.803]
[1719821793865,2.85988,3496.7,3496.1,2.3598]
[1719821800267,2.85988,3496.7,3496.1,5.22012]
[1719821800468,2.85967,3496.9,3496.2,3.66324]
[1719821800665,2.85967,3496.9,3496.4,0.803]
[1719821801673,2.8598,3496.8,3496.4,0.803]
[1719821804087,2.8598,3496.8,3496.4,0.803]
[1719821804856,2.85965,3497.0,3496.4,0.803]
[1719821805210,2.85968,3496.9,3496.4,0.803]
[1719821805984,2.8596,3497.0,3496.4,3.66307]
[1719821808358,2.8596,3497.0,3496.4,2.86007]
[1719821808553,2.85973,3496.9,3496.2,3.66319]
[1719821808853,2.85984,3496.7,3496.1,5.22009]
[1719821809081,2.86013,3496.4,3495.8,2.4938]
[1719821809393,2.86017,3496.3,3495.8,2.4938]
[1719821809593,2.86017,3496.3,3495.7,10.15265]
[1719821809804,2.86017,3496.3,3495.7,7.292]
[1719821810011,2.86026,3496.2,3495.7,7.292]
[1719821811071,2.86026,3496.2,3495.6,2.3917]
[1719821811472,2.86026,3496.2,3495.6,2.68528811]
[1719821815982,5.72023,3496.4,3495.6,5.54600811]
[1719821816191,5.72023,3496.4,3495.7,0.803]
[1719821816382,2.86009,3496.4,3495.7,0.803]
[1719821817412,2.86016,3496.3,3495.7,0.803]
[1719821818513,5.72038,3496.3,3495.7,0.803]
[1719821818692,2.86016,3496.3,3495.7,0.803]
[1719821822926,5.26963,3496.5,3495.7,0.803]
[1719821823926,2.86023,3496.3,3495.7,0.803]
[1719821824816,2.86026,3496.2,3495.7,0.803]
[1719821827032,3.2126,3496.5,3495.6,0.29358811]
[1719821827341,2.85973,3496.9,3495.4,0.803]
[1719821827342,2.86063,3495.8,3495.4,0.803]
[1719821827538,2.86063,3495.8,3495.0,3.0]
[1719821827539,2.86088,3495.5,3495.0,2.4349]
[1719821828430,2.86088,3495.5,3495.0,2.72810022]
[1719821828939,2.86067,3495.7,3495.0,5.58929022]
[1719821830292,2.86067,3495.7,3495.1,0.803]
[1719821831733,2.86067,3495.7,3495.1,3.66414]
[1719821833003,2.86067,3495.7,3495.1,0.803]
[1719821833935,2.3505,3495.8,3495.1,3.66414]
[1719821834134,2.86052,3495.9,3495.2,2.86106]
[1719821834439,5.96274,3496.1,3495.4,2.86089]
[1719821834647,2.86041,3496.0,3495.5,2.3296]
[1719821837824,2.2994,3496.4,3495.8,0.803]
[1719821838020,2.2994,3496.4,3495.8,3.66353]
[1719821838021,5.2994,3496.4,3495.8,3.66353]
[1719821838321,5.15948,3496.4,3495.8,3.66353]
[1719821838720,2.86008,3496.4,3495.8,3.66353]
[1719821839666,5.23699,3496.6,3496.0,0.803]
[1719821839936,3.0,3496.7,3496.0,3.1883]
[1719821839937,5.85986,3496.7,3496.0,3.1883]
[1719821840137,2.85992,3496.6,3496.0,2.3853]
[1719821840343,3.0,3496.7,3496.0,2.3853]
[1719821840540,3.0,3496.7,3496.1,2.86031]
[1719821840707,3.0,3496.7,3496.0,2.3853]
[1719821840911,2.85992,3496.6,3496.0,2.3853]
[1719821841355,2.85992,3496.6,3496.0,5.24566]
[1719821842349,2.85992,3496.6,3496.0,6.04866]
[1719821844637,2.86002,3496.5,3495.8,5.26499]
[1719821844958,2.86002,3496.5,3495.9,3.66344]
[1719821845114,5.85988,3496.7,3496.0,2.8604]
[1719821845747,2.85994,3496.6,3496.0,2.8604]
[1719821847029,2.86,3496.5,3496.0,2.8604]
[1719821847337,2.86,3496.5,3495.9,0.803]
[1719821847562,2.86,3496.5,3495.9,3.66344]
[1719821851342,2.86008,3496.4,3495.9,0.803]
[1719821851538,2.86008,3496.4,3495.8,5.26499]
[1719821852334,2.86025,3496.2,3495.6,11.24770911]
[1719821855568,2.86008,3496.4,3495.8,3.66357]
[1719821855752,2.86008,3496.4,3496.2,0.02]
[1719821859074,2.3497,3496.5,3496.2,0.02]
[1719821859661,5.2097,3496.5,3496.2,0.02]
[1719821860046,2.8601,3496.4,3496.2,0.02]
[1719821860579,2.86016,3496.3,3496.2,0.02]
[1719821862277,2.8601,3496.4,3496.2,0.02]
[1719821862484,2.3497,3496.5,3496.2,0.02]
[1719821863384,5.2097,3496.5,3496.2,0.02]
[1719821866290,5.21278,3496.7,3496.2,0.02]
[1719821866980,2.85992,3496.6,3496.2,0.02]
[1719821869588,2.3529,3496.7,3496.2,0.02]
[1719821869790,2.85962,3497.0,3496.3,2.291]
[1719821869791,5.22892,3497.0,3496.3,2.291]
[1719821869995,5.22892,3497.0,3496.4,2.86007]
[1719821870656,2.85968,3496.9,3496.4,0.803]
[1719821871279,2.85968,3496.9,3496.3,2.291]
[1719821874585,2.85956,3497.1,3496.6,0.803]
[1719821874777,5.12945,3497.2,3496.4,3.66308]
[1719821875659,2.85966,3497.0,3496.4,3.66308]
[1719821880385,2.85969,3496.9,3496.3,2.291]
[1719821880574,2.85969,3496.9,3496.3,5.15116]
[1719821882597,2.85969,3496.9,3496.4,2.86007]
[1719821884384,5.93246,3497.2,3496.4,2.86007]
[1719821884598,5.12946,3497.2,3496.4,3.66307]
[1719821884982,2.85961,3497.0,3496.4,3.66307]
[1719821887701,5.12946,3497.2,3496.5,2.85999]
[1719821888018,2.85952,3497.1,3496.5,2.85999]
[1719821888584,2.85952,3497.1,3497.0,0.02]
[1719821902739,5.71904,3497.1,3497.0,0.02]
[1719821903240,6.52204,3497.1,3497.0,0.02]
[1719821903901,11.63636,3497.1,3497.0,0.02]
[1719821906555,14.63636,3497.1,3497.0,0.02]
[1719821911627,13.83336,3497.1,3497.0,0.02]
[1719821911856,14.63636,3497.1,3497.0,0.02]
[1719821912009,13.83336,3497.1,3497.0,0.02]
[1719821912209,8.71904,3497.1,3497.0,0.02]
[1719821916318,5.71904,3497.1,3497.0,0.02]
[1719821922367,2.85959,3497.0,3496.9,2.471]
[1719821933410,2.85959,3497.0,3496.6,2.2748]
[1719821935517,2.85948,3497.2,3496.6,2.2748]
[1719821936110,2.85948,3497.2,3496.6,5.13471]
[1719821938824,3.0,3497.5,3497.0,2.85954]
[1719821940796,3.0,3497.5,3496.9,3.0635]
[1719821941621,2.85894,3497.8,3497.1,2.8595]
[1719821941794,3.0,3497.7,3497.1,2.8595]
[1719821942195,2.8591,3497.6,3496.9,5.9231]
[1719821942393,2.8591,3497.6,3496.9,3.0635]
[1719821943594,6.66202,3497.7,3497.0,2.85953]
[1719821943810,6.66202,3497.7,3496.9,3.0635]
[1719821943811,6.66202,3497.7,3497.1,2.8595]
[1719821945882,6.66202,3497.7,3497.1,2.82870575]
[1719821946915,3.0,3497.7,3497.2,2.85943]
[1719821948294,0.0940257,3497.9,3497.6,2.3009]
[1719821948499,0.0940257,3497.9,3497.8,3.66193]
[1719821948712,0.0940257,3497.9,3497.6,2.3009]
[1719821948927,0.0940257,3497.9,3497.5,0.803]
[1719821949126,0.0940257,3497.9,3497.6,2.8591]
[1719821949920,0.0940257,3497.9,3497.3,3.1902]
[1719821949921,0.0940257,3497.9,3497.3,5.24654]
[1719821950137,2.9528957,3497.9,3497.2,7.292]
[1719821950436,2.9528957,3497.9,3497.2,10.15142]
[1719821951331,2.9528957,3497.9,3497.3,2.85933]
[1719821952607,0.0940257,3497.9,3497.3,2.85933]
[1719821953442,0.0940257,3497.9,3497.4,2.85925]
[1719821958335,2.4175,3497.7,3497.2,10.15142]
[1719821959247,0.0940257,3497.9,3497.4,2.4678]
[1719821960814,0.0940257,3497.9,3497.6,2.85905]
[1719821962052,0.0940257,3497.9,3497.7,2.85901]
[1719821963423,0.0940257,3497.9,3497.8,5.71786]
[1719821971930,0.0940257,3497.9,3497.8,11.78869]
[1719821974743,0.0940257,3497.9,3497.8,10.98569]
[1719821974945,0.0940257,3497.9,3497.8,11.78869]
[1719821981787,0.0940257,3497.9,3497.8,9.37979]
[1719821981986,0.0940257,3497.9,3497.8,10.84875]
[1719821984289,0.0940257,3497.9,3497.8,7.98982]
[1719821984788,0.0940257,3497.9,3497.8,8.27026419]
[1719821989349,0.0940257,3497.9,3497.8,7.98982]
[1719821989558,0.0940257,3497.9,3497.8,6.52086]
[1719821990687,0.0940257,3497.9,3497.8,2.85893]
[1719821991263,0.0940257,3497.9,3497.4,2.8592]
[1719821991474,0.0940257,3497.9,3497.5,0.803]
[1719821991677,0.0940257,3497.9,3497.6,2.8591]
[1719821992168,0.0940257,3497.9,3497.8,2.85893]
[1719821995969,0.0940257,3497.9,3497.8,5.20293]
[1719821996295,0.0940257,3497.9,3497.8,5.71786]
[1719821998982,0.0940257,3497.9,3497.8,6.604346]
[1719821999386,0.0940257,3497.9,3497.8,6.52086]
[1719822003188,0.0940257,3497.9,3497.8,9.01656]
[1719822005279,0.0940257,3497.9,3497.8,5.71786]
[1719822005491,0.0940257,3497.9,3497.8,6.52086]
[1719822005899,0.0940257,3497.9,3497.8,2.85893]
[1719822009976,0.0940257,3497.9,3497.7,0.803]
[1719822009977,0.0940257,3497.9,3497.7,3.66201]
[1719822010400,0.0940257,3497.9,3497.6,2.8591]
[1719822010681,0.0940257,3497.9,3497.6,3.6621]
[1719822011683,0.0940257,3497.9,3497.7,2.859]
[1719822012586,0.0940257,3497.9,3497.8,3.66193]
[1719822019531,0.0940257,3497.9,3497.8,0.803]
[1719822030700,0.0940257,3497.9,3497.6,0.803]
[1719822034613,0.0940257,3497.9,3497.6,3.66209]
[1719822034813,0.0940257,3497.9,3497.6,4.314211]
[1719822035436,0.0940257,3497.9,3497.6,0.803]
[1719822038248,0.0940257,3497.9,3497.5,2.85916]
[1719822038451,0.0940257,3497.9,3497.6,0.803]
[1719822038951,2.3502,3497.7,3497.2,10.43977335]
[1719822039133,2.3502,3497.7,3497.5,0.803]
[1719822049478,9.01148,3497.3,3497.2,7.292]
[1719822050708,8.20848,3497.3,3497.2,7.292]
[1719822051134,11.87082,3497.3,3497.2,7.292]
[1719822052555,8.21406,3496.7,3496.6,7.292]
[1719822052758,8.21406,3496.7,3495.7,8.25973]
[1719822052759,2.86012,3496.4,3495.9,0.803]
[1719822053072,2.85992,3496.6,3495.5,2.86078]
[1719822053073,2.86025,3496.2,3495.5,2.86078]
[1719822053315,5.23434,3496.1,3495.4,2.3241]
[1719822053475,5.23434,3496.1,3495.5,0.803]
[1719822053677,5.23434,3496.1,3495.7,0.803]
[1719822054097,5.23434,3496.1,3495.6,0.598799]
[1719822054875,5.23434,3496.1,3495.2,2.86105]
[1719822054876,2.86042,3496.0,3495.2,2.86104]
[1719822055115,2.86042,3496.0,3495.4,0.803]
[1719822055439,2.374,3496.1,3495.1,5.12524]
[1719822055440,2.86057,3495.8,3495.1,5.12524]
[1719822055585,5.23434,3496.1,3495.3,0.803]
[1719822055787,5.23434,3496.1,3495.3,1.395824]
[1719822056806,2.86049,3495.9,3495.3,1.395824]
[1719822058908,2.86049,3495.9,3495.5,0.803]
[1719822061835,2.86058,3495.8,3495.3,0.592824]
[1719822062047,2.86058,3495.8,3495.3,0.803]
[1719822062920,2.86074,3495.6,3495.0,0.28684398]
[1719822063103,2.86074,3495.6,3495.0,0.803]
[1719822064433,2.86074,3495.6,3494.8,2.86136]
[1719822064610,2.86082,3495.5,3494.6,17.47594]
[1719822064951,2.86098,3495.3,3494.8,0.803]
[1719822065543,3.0565,3495.8,3494.6,0.28088665]
[1719822065544,2.86124,3495.0,3494.6,0.28088665]
[1719822065846,2.86124,3495.0,3494.4,7.292]
[1719822065847,2.86124,3495.0,3494.5,0.803]
[1719822066046,2.86124,3495.0,3494.6,1.641729]
[1719822066407,5.20306,3495.2,3494.6,1.641729]
[1719822066610,2.86115,3495.1,3494.6,1.641729]
[1719822068057,2.86115,3495.1,3494.5,0.803]
[1719822068257,2.86125,3495.0,3494.5,0.803]
[1719822068848,2.86125,3495.0,3494.4,7.292]
[1719822069016,2.8614,3494.8,3494.5,0.803]
[1719822069738,2.86155,3494.6,3494.4,7.292]
[1719822069907,2.8617,3494.5,3493.9,0.803]
[1719822070113,2.86173,3494.4,3493.7,2.86228]
[1719822070313,2.86195,3494.2,3493.8,0.572472]
[1719822070611,2.86202,3494.1,3493.5,0.803]
[1719822071031,2.86205,3494.0,3493.5,0.803]
[1719822071451,2.86213,3493.9,3493.1,5.15406]
[1719822071662,2.86213,3493.9,3493.4,0.803]
[1719822072348,2.86228,3493.8,3493.2,1.101699]
[1719822072534,2.86228,3493.8,3493.2,0.803]
[1719822073342,2.86229,3493.7,3493.2,0.803]
[1719822074734,2.86229,3493.7,3493.1,3.0943]
[1719822075319,2.86229,3493.7,3492.9,2.86293]
[1719822075505,2.86229,3493.7,3493.2,0.803]
[1719822075913,2.86233,3493.7,3492.8,7.292]